bitfinex/quotes_SOLUSD_20250604
["timestamp","ask_amount","ask_price","bid_price","bid_amount"]
[1749042645390,21.3394697,155.39,155.35,19.21829514]
[1749042645391,19.8083697,155.38,155.35,19.21829514]
[1749042650277,21.3394697,155.39,155.35,19.21829514]
[1749042651184,19.8083697,155.38,155.35,19.21829514]
[1749042652370,46.610311,155.41,155.37,20.23485441]
[1749042652672,45.8083697,155.41,155.37,20.23485441]
[1749042652889,19.8083697,155.41,155.37,20.23485441]
[1749042653575,19.8083697,155.4,155.38,0.14216157]
[1749042656293,19.8083697,155.39,155.36,0.14216157]
[1749042656462,19.8083697,155.37,155.36,0.14216157]
[1749042657375,19.8083697,155.37,155.34,0.56864628]
[1749042657566,19.8083697,155.37,155.34,0.42648471]
[1749042657773,19.8083697,155.36,155.32,18.79181043]
[1749042657969,19.8083697,155.36,155.33,0.28432314]
[1749042658169,19.8083697,155.35,155.33,0.28432314]
[1749042658386,6.5376,155.4,155.32,0.14216157]
[1749042658387,19.8083697,155.34,155.32,0.14216157]
[1749042658894,19.8083697,155.36,155.34,0.42648471]
[1749042659578,19.8083697,155.35,155.34,0.42648471]
[1749042660670,19.8083697,155.35,155.31,19.21829514]
[1749042660883,19.8083697,155.34,155.31,18.933972]
[1749042661094,0.8019413,155.37,155.32,0.28432314]
[1749042661295,19.8083697,155.34,155.31,18.933972]
[1749042661598,19.8083697,155.34,155.32,0.28432314]
[1749042663090,19.8083697,155.35,155.32,0.28432314]
[1749042664600,19.8083697,155.36,155.33,0.14216157]
[1749042664773,19.8083697,155.35,155.33,0.14216157]
[1749042665981,19.8083697,155.36,155.33,0.14216157]
[1749042666905,2.4142413,155.38,155.34,18.933972]
[1749042667075,21.4206697,155.38,155.35,0.14216157]
[1749042667273,19.8083697,155.36,155.35,0.14216157]
[1749042667477,19.8083697,155.36,155.33,0.14216157]
[1749042667785,19.8083697,155.35,155.33,0.14216157]
[1749042668180,19.8083697,155.34,155.32,0.42648471]
[1749042668806,19.8083697,155.33,155.28,0.56864628]
[1749042668998,19.8083697,155.31,155.27,0.14216157]
[1749042669181,26.0,155.35,155.27,18.79181043]
[1749042669182,19.8083697,155.3,155.27,18.79181043]
[1749042669891,19.8083697,155.3,155.28,0.28432314]
[1749042670706,20.610311,155.29,155.27,0.14216157]
[1749042671003,19.8083697,155.28,155.27,0.14216157]
[1749042671787,0.8019413,155.31,155.27,0.14216157]
[1749042671788,19.8083697,155.29,155.27,0.14216157]
[1749042672404,19.8083697,155.3,155.27,19.21829514]
[1749042674501,19.8083697,155.31,155.27,19.21829514]
[1749042675180,22.228711,155.32,155.28,19.8083697]
[1749042675376,20.610311,155.32,155.28,19.8083697]
[1749042676304,0.8019413,155.32,155.29,0.42648471]
[1749042676504,46.610311,155.33,155.29,20.23485441]
[1749042676691,45.8083697,155.33,155.29,20.23485441]
[1749042677286,45.8083697,155.33,155.29,0.28432314]
[1749042677486,45.8083697,155.33,155.3,0.14216157]
[1749042678799,1.5594,155.35,155.31,0.14216157]
[1749042678800,19.8083697,155.34,155.31,0.14216157]
[1749042679395,28.3613413,155.35,155.31,0.14216157]
[1749042679594,48.169711,155.35,155.31,0.14216157]
[1749042680285,26.0,155.35,155.31,20.23485441]
[1749042680615,6.9626413,155.38,155.31,20.23485441]
[1749042680616,19.8083697,155.37,155.33,19.95053127]
[1749042680809,0.8019413,155.37,155.33,19.95053127]
[1749042681112,20.610311,155.38,155.35,0.14216157]
[1749042681699,19.8083697,155.37,155.35,0.14216157]
[1749042682424,2.4364413,155.39,155.33,0.42648471]
[1749042682622,19.8083697,155.34,155.33,0.14216157]
[1749042682827,19.8083697,155.34,155.3,0.42648471]
[1749042683000,19.8083697,155.32,155.3,0.14216157]
[1749042683199,20.610311,155.31,155.3,0.14216157]
[1749042683512,26.0,155.32,155.28,20.23485441]
[1749042683513,19.8083697,155.32,155.28,20.23485441]
[1749042683697,19.8083697,155.32,155.28,27.97047106]
[1749042684601,19.8083697,155.32,155.28,27.97047106]
[1749042685099,20.610311,155.32,155.28,27.97047106]
[1749042685915,27.5666,155.33,155.28,27.97047106]
[1749042686142,20.610311,155.32,155.28,27.97047106]
[1749042686520,19.8083697,155.32,155.28,27.97047106]
[1749042687018,20.610311,155.32,155.28,19.95053127]
[1749042689425,19.8083697,155.32,155.28,19.95053127]
[1749042689745,0.8019413,155.32,155.28,19.95053127]
[1749042689904,1.5666,155.33,155.3,19.95053127]
[1749042690213,20.610311,155.34,155.3,19.95053127]
[1749042691725,20.610311,155.35,155.31,19.8083697]
[1749042693310,19.8083697,155.34,155.3,0.42648471]
[1749042693511,19.8083697,155.32,155.3,0.42648471]
[1749042693714,19.8083697,155.32,155.29,0.14216157]
[1749042694113,19.8083697,155.32,155.29,0.42648471]
[1749042694810,19.8083697,155.32,155.27,20.09269284]
[1749042695029,19.8083697,155.31,155.28,0.42648471]
[1749042695210,19.8083697,155.31,155.28,0.14216157]
[1749042695631,19.8083697,155.3,155.28,0.28432314]
[1749042696015,25.8596697,155.36,155.26,0.14216157]
[1749042696016,20.610311,155.29,155.26,0.14216157]
[1749042696216,19.8083697,155.28,155.26,0.14216157]
[1749042696522,19.8083697,155.28,155.26,0.42648471]
[1749042697039,19.8083697,155.28,155.26,0.28432314]
[1749042700427,47.3298697,155.31,155.26,18.933972]
[1749042700630,27.5215,155.31,155.28,0.28432314]
[1749042701008,48.131811,155.31,155.28,0.28432314]
[1749042701535,19.8083697,155.3,155.27,0.42648471]
[1749042702136,19.8083697,155.29,155.26,0.42648471]
[1749042704834,19.8083697,155.29,155.26,20.09269284]
[1749042705030,19.8083697,155.3,155.26,20.09269284]
[1749042705347,19.8083697,155.29,155.26,0.28432314]
[1749042707929,21.3298697,155.31,155.27,19.8083697]
[1749042708121,19.8083697,155.31,155.28,0.28432314]
[1749042708307,0.8019413,155.33,155.29,19.8083697]
[1749042708507,20.610311,155.33,155.29,19.8083697]
[1749042708933,20.610311,155.33,155.28,20.09269284]
[1749042708934,19.8083697,155.32,155.28,20.09269284]
[1749042709435,19.8083697,155.31,155.28,0.28432314]
[1749042710035,19.8083697,155.29,155.26,0.28432314]
[1749042710204,19.8083697,155.28,155.26,0.28432314]
[1749042710632,19.8083697,155.29,155.26,0.28432314]
[1749042717737,0.8019413,155.33,155.26,0.28432314]
[1749042717936,19.8083697,155.3,155.26,20.09269284]
[1749042718668,26.8019413,155.33,155.26,20.09269284]
[1749042718937,19.8083697,155.31,155.27,19.8083697]
[1749042719134,19.8083697,155.31,155.26,38.88450327]
[1749042719335,19.8083697,155.3,155.26,38.88450327]
[1749042719722,19.8083697,155.28,155.26,0.28432314]
[1749042719969,0.8019413,155.32,155.26,0.28432314]
[1749042720279,19.8083697,155.3,155.26,20.09269284]
[1749042720476,26.0,155.34,155.28,0.28432314]
[1749042720477,19.8083697,155.31,155.28,0.28432314]
[1749042721085,19.8083697,155.32,155.28,20.09269284]
[1749042721286,19.8083697,155.32,155.28,0.28432314]
[1749042722371,20.610311,155.31,155.28,0.14216157]
[1749042722754,19.8083697,155.3,155.27,0.28432314]
[1749042722957,19.8083697,155.28,155.26,0.28432314]
[1749042723278,19.8083697,155.28,155.25,7.91478706]
[1749042723482,19.8083697,155.29,155.25,7.91478706]
[1749042723693,19.8083697,155.29,155.26,0.28432314]
[1749042724050,19.8083697,155.3,155.26,0.28432314]
[1749042724268,0.8019413,155.33,155.26,38.88450327]
[1749042724485,19.8083697,155.3,155.26,38.88450327]
[1749042724779,19.8083697,155.31,155.26,38.88450327]
[1749042724979,19.8083697,155.31,155.27,19.8083697]
[1749042725188,19.8083697,155.32,155.28,0.28432314]
[1749042726871,19.8083697,155.31,155.28,0.28432314]
[1749042728686,0.8019413,155.34,155.28,20.09269284]
[1749042728862,19.8083697,155.33,155.3,0.28432314]
[1749042729478,19.8083697,155.32,155.3,0.28432314]
[1749042732769,0.8019413,155.34,155.3,0.28432314]
[1749042732770,19.8083697,155.33,155.3,0.28432314]
[1749042733075,0.8019413,155.34,155.24,26.0]
[1749042733263,19.8083697,155.32,155.29,0.14216157]
[1749042734175,19.8083697,155.33,155.29,0.14216157]
[1749042734391,19.8083697,155.32,155.29,0.14216157]
[1749042736668,19.8083697,155.31,155.27,27.42842011]
[1749042736865,19.8083697,155.31,155.28,0.14216157]
[1749042737170,19.8083697,155.29,155.27,7.62005041]
[1749042737386,19.8083697,155.28,155.27,7.62005041]
[1749042748016,20.610311,155.28,155.27,7.62005041]
[1749042749408,20.610311,155.28,155.22,0.14216157]
[1749042749612,19.8083697,155.25,155.22,0.14216157]
[1749042750117,19.8083697,155.25,155.21,19.07613357]
[1749042750321,19.8083697,155.25,155.21,38.88450327]
[1749042751315,0.8019413,155.28,155.24,19.95053127]
[1749042751527,0.8019413,155.29,155.25,19.8083697]
[1749042751689,22.132111,155.3,155.26,0.14216157]
[1749042752614,32.6092,155.31,155.27,19.8083697]
[1749042752615,19.8083697,155.31,155.27,19.8083697]
[1749042753000,20.610311,155.31,155.27,19.8083697]
[1749042754391,19.8083697,155.31,155.24,0.14216157]
[1749042754624,20.610311,155.31,155.27,19.8083697]
[1749042754800,20.610311,155.31,155.24,0.14216157]
[1749042755004,20.610311,155.31,155.27,19.8083697]
[1749042755411,19.8083697,155.32,155.27,19.8083697]
[1749042755609,19.8083697,155.33,155.29,19.8083697]
[1749042755810,48.206511,155.34,155.3,19.8083697]
[1749042756018,28.3981413,155.34,155.3,19.8083697]
[1749042756313,22.206511,155.34,155.3,19.8083697]
[1749042756515,19.8083697,155.33,155.29,19.8083697]
[1749042757920,0.8019413,155.32,155.26,19.07613357]
[1749042758126,19.8083697,155.31,155.28,0.14216157]
[1749042758507,19.8083697,155.32,155.28,19.95053127]
[1749042759011,2.3981413,155.34,155.29,19.8083697]
[1749042759214,22.206511,155.34,155.3,0.14216157]
[1749042760909,19.8083697,155.35,155.3,19.95053127]
[1749042761542,19.8083697,155.35,155.31,19.8083697]
[1749042761747,19.8083697,155.36,155.32,19.8083697]
[1749042762634,2.3696413,155.38,155.33,19.95053127]
[1749042762935,1.5677,155.38,155.35,19.8083697]
[1749042763114,21.3760697,155.38,155.35,0.14216157]
[1749042764225,21.3760697,155.38,155.34,19.8083697]
[1749042765021,20.610311,155.37,155.33,19.95053127]
[1749042765220,19.8083697,155.37,155.33,19.95053127]
[1749042766138,19.8083697,155.37,155.33,0.14216157]
[1749042766338,20.610311,155.36,155.32,19.95053127]
[1749042767738,19.8083697,155.37,155.33,19.8083697]
[1749042769810,19.8083697,155.37,155.32,19.95053127]
[1749042770010,19.8083697,155.37,155.32,20.23485441]
[1749042770640,20.610311,155.37,155.32,20.23485441]
[1749042771216,16.66335419,155.43,155.36,38.88450327]
[1749042771217,0.8019413,155.42,155.36,38.88450327]
[1749042771411,19.8083697,155.43,155.39,19.8083697]
[1749042771643,27.5521,155.45,155.39,19.8083697]
[1749042771644,20.610311,155.44,155.39,19.8083697]
[1749042772134,20.610311,155.44,155.4,19.8083697]
[1749042772640,20.610311,155.44,155.39,19.8083697]
[1749042772849,20.610311,155.44,155.4,19.8083697]
[1749042773226,20.610311,155.44,155.39,19.8083697]
[1749042773715,19.8083697,155.43,155.39,19.8083697]
[1749042774135,0.8019413,155.42,155.39,19.8083697]
[1749042774646,19.8083697,155.43,155.39,19.8083697]
[1749042774945,0.8019413,155.42,155.39,19.8083697]
[1749042775740,19.8083697,155.43,155.39,19.8083697]
[1749042776044,19.8083697,155.43,155.39,0.14216157]
[1749042776278,0.8019413,155.42,155.39,0.14216157]
[1749042776447,20.610311,155.42,155.39,0.14216157]
[1749042776652,19.8083697,155.42,155.39,0.14216157]
[1749042778242,2.3540413,155.45,155.39,0.14216157]
[1749042778458,19.8083697,155.43,155.39,0.14216157]
[1749042779025,20.610311,155.42,155.36,18.64964886]
[1749042779231,19.8083697,155.41,155.36,19.8083697]
[1749042779727,0.8019413,155.4,155.37,0.14216157]
[1749042779929,19.8083697,155.38,155.36,0.14216157]
[1749042780136,19.8083697,155.38,155.34,18.64964886]
[1749042780331,19.8083697,155.37,155.33,19.8083697]
[1749042780752,19.8083697,155.39,155.3,18.64964886]
[1749042780961,0.8019413,155.4,155.37,19.07613357]
[1749042781138,3.34895251,155.49,155.4,19.07613357]
[1749042781139,0.8019413,155.47,155.4,19.07613357]
[1749042781333,7.8094,155.49,155.4,19.07613357]
[1749042781334,28.419711,155.49,155.45,19.8083697]
[1749042781569,2.4332413,155.49,155.41,0.14216157]
[1749042781870,2.4332413,155.49,155.46,19.8083697]
[1749042782023,2.4332413,155.49,155.41,0.56864628]
[1749042782024,19.8083697,155.48,155.43,19.8083697]
[1749042782224,0.8019413,155.47,155.43,19.8083697]
[1749042782446,0.8019413,155.47,155.43,19.95053127]
[1749042783232,20.610311,155.47,155.42,19.8083697]
[1749042783452,19.8083697,155.46,155.42,19.8083697]
[1749042784547,19.8083697,155.46,155.41,0.28432314]
[1749042784751,19.8083697,155.46,155.42,19.8083697]
[1749042785144,19.8083697,155.46,155.42,0.14216157]
[1749042785363,20.610311,155.45,155.41,19.8083697]
[1749042785727,19.8083697,155.44,155.41,0.14216157]
[1749042786651,19.8083697,155.44,155.4,0.14216157]
[1749042787027,20.610311,155.43,155.38,7.20413283]
[1749042787356,19.8083697,155.42,155.38,27.01250253]
[1749042787570,19.8083697,155.42,155.39,0.14216157]
[1749042789155,19.8083697,155.43,155.39,0.14216157]
[1749042789752,0.8019413,155.5,155.44,0.28432314]
[1749042789957,1.5807,155.54,155.49,19.8083697]
[1749042790252,1.5807,155.54,155.51,19.8083697]
[1749042790457,0.8019413,155.57,155.52,19.8083697]
[1749042790644,20.610311,155.57,155.52,19.8083697]
[1749042792059,20.610311,155.57,155.53,19.8083697]
[1749042792245,0.8019413,155.57,155.53,19.8083697]
[1749042792564,20.610311,155.57,155.53,19.8083697]
[1749042792953,20.610311,155.57,155.52,19.8083697]
[1749042793163,19.8083697,155.56,155.51,19.8083697]
[1749042793330,20.610311,155.55,155.5,19.8083697]
[1749042794159,20.610311,155.55,155.51,19.8083697]
[1749042794343,20.610311,155.55,155.52,19.8083697]
[1749042794344,0.8019413,155.55,155.52,19.8083697]
[1749042794545,19.8083697,155.57,155.53,19.8083697]
[1749042794866,0.8019413,155.56,155.53,19.8083697]
[1749042795235,0.8019413,155.58,155.53,19.8083697]
[1749042795431,19.8083697,155.57,155.53,19.8083697]
[1749042795649,0.8019413,155.56,155.53,19.8083697]
[1749042796243,0.8019413,155.56,155.52,19.8083697]
[1749042796549,20.610311,155.56,155.51,19.8083697]
[1749042797060,19.8083697,155.53,155.49,20.23485441]
[1749042797557,19.8083697,155.51,155.46,19.8083697]
[1749042797775,19.8083697,155.5,155.46,19.8083697]
[1749042798139,19.8083697,155.51,155.47,19.8083697]
[1749042798334,0.8019413,155.5,155.47,19.8083697]
[1749042798662,19.8083697,155.51,155.47,19.8083697]
[1749042799373,0.8019413,155.5,155.45,0.14216157]
[1749042799532,20.610311,155.5,155.45,19.8083697]
[1749042800158,19.8083697,155.49,155.45,19.8083697]
[1749042800371,0.8019413,155.48,155.44,38.7423417]
[1749042800758,19.8083697,155.47,155.44,26.0]
[1749042802376,19.8083697,155.48,155.44,26.0]
[1749042802536,20.610311,155.47,155.44,26.0]
[1749042802940,19.8083697,155.46,155.38,7.3462944]
[1749042803139,27.5682,155.51,155.38,7.3462944]
[1749042803140,19.8083697,155.44,155.39,19.8083697]
[1749042803445,19.8083697,155.44,155.4,0.42648471]
[1749042803839,19.8083697,155.46,155.41,19.8083697]
[1749042804047,0.8019413,155.45,155.41,19.8083697]
[1749042804666,20.610311,155.45,155.4,0.42648471]
[1749042804864,20.610311,155.45,155.4,20.23485441]
[1749042805251,20.610311,155.45,155.41,19.8083697]
[1749042806046,20.610311,155.45,155.4,20.23485441]
[1749042807967,20.610311,155.45,155.41,19.8083697]
[1749042808181,20.610311,155.45,155.4,20.23485441]
[1749042808652,19.8083697,155.44,155.4,19.8083697]
[1749042809769,19.8083697,155.42,155.38,7.20413283]
[1749042811076,20.610311,155.41,155.38,7.20413283]
[1749042811251,19.8083697,155.4,155.38,7.20413283]
[1749042811850,19.8083697,155.39,155.38,7.20413283]
[1749042812052,2.4028413,155.43,155.38,7.20413283]
[1749042812053,19.8083697,155.4,155.38,7.20413283]
[1749042812354,19.8083697,155.42,155.38,7.20413283]
[1749042812562,0.8019413,155.41,155.38,7.20413283]
[1749042812747,0.8019413,155.41,155.38,27.01250253]
[1749042813952,1.6009,155.43,155.39,19.8083697]
[1749042813953,22.211211,155.43,155.39,19.8083697]
[1749042814162,21.4092697,155.43,155.39,19.8083697]
[1749042815264,0.8019413,155.42,155.38,7.20413283]
[1749042815447,0.8019413,155.42,155.38,27.01250253]
[1749042815646,21.4092697,155.43,155.38,27.01250253]
[1749042815848,19.8083697,155.44,155.39,19.8083697]
[1749042816048,0.8019413,155.43,155.39,19.8083697]
[1749042817378,20.610311,155.43,155.38,27.01250253]
[1749042818369,19.8083697,155.42,155.38,27.01250253]
[1749042818753,19.8083697,155.43,155.38,27.01250253]
[1749042819868,19.8083697,155.43,155.39,19.8083697]
[1749042821056,19.8083697,155.44,155.4,19.8083697]
[1749042821669,19.8083697,155.45,155.4,19.8083697]
[1749042821876,0.8019413,155.44,155.4,19.8083697]
[1749042822075,0.8019413,155.44,155.38,7.20413283]
[1749042822076,20.610311,155.44,155.38,7.20413283]
[1749042822268,19.8083697,155.43,155.39,19.07613357]
[1749042822648,19.8083697,155.43,155.39,38.88450327]
[1749042826583,19.8083697,155.43,155.39,19.07613357]
[1749042827780,19.8083697,155.42,155.38,27.01250253]
[1749042828082,19.8083697,155.43,155.38,27.01250253]
[1749042829174,0.8019413,155.44,155.4,19.8083697]
[1749042829366,19.8083697,155.45,155.41,19.8083697]
[1749042829573,20.610311,155.46,155.42,19.8083697]
[1749042829778,38.60018013,155.52,155.43,19.8083697]
[1749042829779,2.3761413,155.51,155.43,19.8083697]
[1749042830090,2.3761413,155.51,155.46,19.8083697]
[1749042830091,22.184511,155.51,155.46,19.8083697]
[1749042832080,19.8083697,155.5,155.43,0.42648471]
[1749042832286,0.8019413,155.49,155.45,19.8083697]
[1749042832589,19.8083697,155.49,155.45,19.8083697]
[1749042833284,19.8083697,155.47,155.43,19.07613357]
[1749042833675,20.610311,155.46,155.42,19.07613357]
[1749042834077,19.8083697,155.46,155.42,0.42648471]
[1749042834279,19.8083697,155.46,155.42,19.07613357]
[1749042834666,0.8019413,155.47,155.42,20.23485441]
[1749042834982,19.8083697,155.47,155.42,20.23485441]
[1749042835179,20.610311,155.48,155.43,19.8083697]
[1749042835362,19.8083697,155.47,155.43,19.8083697]
[1749042835568,19.8083697,155.47,155.43,18.64964886]
[1749042835878,19.8083697,155.46,155.42,20.23485441]
[1749042836873,19.8083697,155.47,155.42,20.23485441]
[1749042837298,19.8083697,155.47,155.43,19.8083697]
[1749042839392,19.8083697,155.47,155.39,19.21829514]
[1749042839695,19.8083697,155.47,155.43,19.8083697]
[1749042839995,1.5742,155.51,155.39,18.64964886]
[1749042839996,19.8083697,155.44,155.39,18.64964886]
[1749042840171,26.8019413,155.46,155.39,18.64964886]
[1749042840172,19.8083697,155.43,155.39,18.64964886]
[1749042840372,19.8083697,155.43,155.39,38.45801856]
[1749042840673,19.8083697,155.42,155.39,18.64964886]
[1749042841673,19.8083697,155.42,155.38,27.29682567]
[1749042841999,19.8083697,155.42,155.38,27.01250253]
[1749042842799,19.8083697,155.41,155.38,7.20413283]
[1749042843006,26.0,155.39,155.38,7.20413283]
[1749042843674,19.8083697,155.4,155.38,7.20413283]
[1749042845416,20.610311,155.41,155.38,7.20413283]
[1749042850406,19.8083697,155.41,155.38,7.20413283]
[1749042852508,0.8019413,155.43,155.39,19.8083697]
[1749042852509,20.610311,155.43,155.39,19.8083697]
[1749042852708,20.610311,155.44,155.39,19.8083697]
[1749042853800,19.8083697,155.44,155.39,19.8083697]
[1749042855589,19.8083697,155.44,155.4,19.8083697]
[1749042856406,0.8019413,155.43,155.39,19.8083697]
[1749042856689,20.610311,155.43,155.39,19.07613357]
[1749042857286,2.3783413,155.45,155.39,38.88450327]
[1749042857511,19.8083697,155.43,155.39,38.88450327]
[1749042858115,19.8083697,155.44,155.4,19.8083697]
[1749042859115,26.0,155.44,155.4,19.8083697]
[1749042859318,45.8083697,155.44,155.4,19.8083697]
[1749042861013,26.0,155.44,155.4,19.8083697]
[1749042861209,45.8083697,155.44,155.4,19.8083697]
[1749042861418,2.3783413,155.45,155.4,19.8083697]
[1749042861596,2.3783413,155.45,155.39,19.07613357]
[1749042861597,22.186711,155.45,155.41,19.8083697]
[1749042861801,20.610311,155.46,155.42,19.8083697]
[1749042861997,0.8019413,155.46,155.42,19.8083697]
[1749042862420,20.610311,155.46,155.42,19.8083697]
[1749042862617,20.610311,155.46,155.41,19.8083697]
[1749042864722,19.8083697,155.45,155.41,19.8083697]
[1749042865225,19.8083697,155.45,155.4,0.28432314]
[1749042865527,19.8083697,155.45,155.41,19.8083697]
[1749042867603,19.8083697,155.44,155.4,20.09269284]
[1749042867825,19.8083697,155.43,155.39,18.79181043]
[1749042868026,19.8083697,155.42,155.38,7.20413283]
[1749042868915,19.8083697,155.43,155.38,27.01250253]
[1749042869116,19.08631762,155.43,155.38,27.01250253]
[1749042869611,19.8083697,155.42,155.38,27.01250253]
[1749042872329,26.0,155.46,155.38,27.01250253]
[1749042872634,19.8083697,155.43,155.4,0.67]
[1749042874134,19.8083697,155.44,155.4,20.4783697]
[1749042874618,19.8083697,155.44,155.4,0.67]
[1749042875235,19.8083697,155.43,155.4,0.67]
[1749042881034,19.8083697,155.41,155.4,0.67]
[1749042882120,19.8083697,155.41,155.38,7.20413283]
[1749042882121,26.0,155.39,155.38,7.20413283]
[1749042882318,45.8083697,155.39,155.38,7.20413283]
[1749042882524,45.8083697,155.39,155.29,1.58136157]
[1749042882725,19.8083697,155.34,155.3,19.8083697]
[1749042882936,19.8083697,155.35,155.31,19.07613357]
[1749042883149,19.8083697,155.36,155.31,46.03883158]
[1749042885038,19.8083697,155.36,155.31,27.38918272]
[1749042888526,20.610311,155.38,155.34,19.8083697]
[1749042889648,19.8083697,155.37,155.33,20.23485441]
[1749042890252,19.8083697,155.37,155.33,0.42648471]
[1749042890748,19.8083697,155.37,155.32,38.45801856]
[1749042891437,19.8083697,155.39,155.35,38.88450327]
[1749042891633,19.8083697,155.4,155.35,38.88450327]
[1749042892527,19.8083697,155.39,155.35,38.88450327]
[1749042893454,19.8083697,155.41,155.37,19.8083697]
[1749042896137,20.610311,155.42,155.37,19.8083697]
[1749042896340,0.8019413,155.42,155.38,19.8083697]
[1749042896861,22.142611,155.43,155.38,19.8083697]
[1749042897444,22.142611,155.43,155.39,19.8083697]
[1749042898848,2.3342413,155.43,155.39,19.8083697]
[1749042899637,22.142611,155.43,155.39,19.8083697]
[1749042900854,22.142611,155.43,155.38,19.8083697]
[1749042901458,2.3342413,155.43,155.39,19.8083697]
[1749042901767,20.610311,155.43,155.38,19.8083697]
[1749042902465,20.610311,155.43,155.39,19.8083697]
[1749042903551,20.610311,155.43,155.38,19.8083697]
[1749042903752,19.8083697,155.41,155.37,19.95053127]
[1749042904063,20.610311,155.4,155.35,19.95053127]
[1749042904367,20.610311,155.4,155.33,18.64964886]
[1749042904547,20.610311,155.4,155.34,0.42648471]
[1749042904745,19.8083697,155.39,155.34,0.42648471]
[1749042904943,0.8019413,155.38,155.34,20.23485441]
[1749042905150,19.8083697,155.39,155.35,19.8083697]
[1749042905666,19.8083697,155.4,155.35,19.8083697]
[1749042905844,0.8019413,155.39,155.35,19.8083697]
[1749042907262,20.610311,155.39,155.35,19.8083697]
[1749042907459,20.610311,155.39,155.34,20.23485441]
[1749042909077,19.8083697,155.38,155.34,19.8083697]
[1749042910062,19.8083697,155.39,155.34,19.8083697]
[1749042910249,19.8083697,155.4,155.35,19.8083697]
[1749042910455,20.610311,155.4,155.35,19.8083697]
[1749042910751,2.4604413,155.41,155.37,19.8083697]
[1749042910972,0.8019413,155.43,155.4,19.8083697]
[1749042911152,19.8083697,155.44,155.4,19.8083697]
[1749042911346,22.154511,155.45,155.41,19.8083697]
[1749042912073,19.8083697,155.44,155.4,19.8083697]
[1749042912377,0.8019413,155.43,155.4,19.8083697]
[1749042912967,20.610311,155.43,155.39,19.8083697]
[1749042913180,19.8083697,155.42,155.38,19.8083697]
[1749042914348,19.8083697,155.43,155.38,19.8083697]
[1749042914547,0.8019413,155.42,155.38,19.8083697]
[1749042914747,20.610311,155.42,155.37,20.23485441]
[1749042915147,19.8083697,155.39,155.35,19.8083697]
[1749042915351,0.8019413,155.38,155.33,19.8083697]
[1749042915577,1.5185,155.41,155.33,19.8083697]
[1749042915578,19.8083697,155.37,155.33,27.13327891]
[1749042915765,19.8083697,155.38,155.33,27.13327891]
[1749042916575,0.8019413,155.4,155.33,27.13327891]
[1749042916576,45.8083697,155.37,155.33,27.13327891]
[1749042917077,26.0,155.37,155.34,19.8083697]
[1749042917955,19.8083697,155.37,155.33,27.13327891]
[1749042918667,19.8083697,155.37,155.33,19.8083697]
[1749042919168,20.610311,155.4,155.35,19.8083697]
[1749042919366,20.610311,155.4,155.35,27.06181978]
[1749042919673,19.8083697,155.39,155.35,7.25345008]
[1749042919859,20.610311,155.38,155.35,7.25345008]
[1749042920062,19.8083697,155.37,155.35,7.25345008]
[1749042922362,20.610311,155.36,155.35,7.25345008]
[1749042923289,22.260611,155.36,155.35,7.25345008]
[1749042924299,22.260611,155.36,155.3,19.8083697]
[1749042924698,19.8083697,155.34,155.29,27.57035621]
[1749042924871,19.8083697,155.33,155.29,7.76198651]
[1749042925071,19.8083697,155.33,155.29,27.57035621]
[1749042925302,19.8083697,155.33,155.29,7.76198651]
[1749042928096,19.8083697,155.33,155.29,27.57035621]
[1749042928279,19.8083697,155.34,155.3,19.8083697]
[1749042929196,26.0,155.31,155.29,7.76198651]
[1749042929400,26.0,155.31,155.18,7.8466]
[1749042929401,26.0,155.29,155.18,7.8466]
[1749042929705,26.0,155.29,155.2,0.14216157]
[1749042929706,26.8019413,155.29,155.2,0.14216157]
[1749042929872,19.8083697,155.27,155.21,26.0]
[1749042930074,0.8019413,155.28,155.23,20.23485441]
[1749042930288,0.8019413,155.29,155.25,19.8083697]
[1749042930491,0.8019413,155.3,155.27,19.8083697]
[1749042930677,0.8019413,155.32,155.26,0.14216157]
[1749042930877,0.8019413,155.35,155.31,19.8083697]
[1749042931116,0.8019413,155.35,155.32,19.8083697]
[1749042931278,0.8019413,155.37,155.34,19.8083697]
[1749042931481,5.01374432,155.38,155.35,19.8083697]
[1749042931705,20.610311,155.4,155.36,19.8083697]
[1749042931911,20.610311,155.4,155.32,0.28432314]
[1749042931912,21.3125697,155.42,155.37,19.8083697]
[1749042932089,0.8019413,155.41,155.37,19.8083697]
[1749042932295,20.610311,155.41,155.37,19.8083697]
[1749042932605,2.3061413,155.42,155.38,19.8083697]
[1749042932784,1.5042,155.42,155.38,19.8083697]
[1749042932981,1.5042,155.42,155.37,19.8083697]
[1749042932982,48.114511,155.42,155.37,19.8083697]
[1749042933377,22.114511,155.42,155.37,19.8083697]
[1749042933606,48.114511,155.42,155.37,19.8083697]
[1749042933819,22.114511,155.42,155.37,19.8083697]
[1749042933995,48.114511,155.42,155.37,19.8083697]
[1749042934393,19.8083697,155.41,155.37,19.8083697]
[1749042934906,26.0,155.42,155.39,19.8083697]
[1749042935811,1.5709,155.46,155.41,19.8083697]